bitfinex-derivatives/quotes_SOLF0:USTF0_20241229
["timestamp","ask_amount","ask_price","bid_price","bid_amount"]
[1735506539921,8.30810513,192.51,192.46,4.71246618]
[1735506540101,2.6031,192.49,192.45,2.6035]
[1735506540401,2.6031,192.49,192.46,4.71280686]
[1735506540601,2.6031,192.49,192.45,2.6035]
[1735506540800,2.6031,192.49,192.46,4.71317888]
[1735506541001,10.91090513,192.51,192.46,2.6034]
[1735506541603,10.91090513,192.51,192.47,4.71430457]
[1735506541901,10.91090513,192.51,192.46,2.6034]
[1735506542102,10.91090513,192.51,192.47,7.31774287]
[1735506542400,10.91090513,192.51,192.47,2.6033]
[1735506546004,10.91090513,192.51,192.46,2.98]
[1735506546200,10.91090513,192.51,192.46,5.5835]
[1735506547310,8.30810513,192.49,192.41,28.59047928]
[1735506547604,8.30810513,192.49,192.42,27.71455928]
[1735506547803,10.91120513,192.49,192.44,2.6037]
[1735506548106,8.30810513,192.49,192.44,2.6037]
[1735506548309,8.30810513,192.49,192.42,11.28810513]
[1735506548506,2.6032,192.48,192.43,7.31953935]
[1735506548702,2.6032,192.48,192.43,2.6038]
[1735506548913,10.91170513,192.45,192.4,2.6043]
[1735506549199,10.91170513,192.45,192.37,78.86153506]
[1735506549200,8.30810513,192.45,192.38,8.30810513]
[1735506549402,8.30810513,192.43,192.39,4.71727752]
[1735506549614,8.30810513,192.43,192.38,2.98]
[1735506550611,2.6041,192.42,192.38,2.98]
[1735506550810,2.6041,192.42,192.36,5.5847]
[1735506551114,4.0904,192.42,192.36,5.5847]
[1735506552809,8.30810513,192.41,192.36,5.5847]
[1735506553109,2.6043,192.4,192.35,13.89300513]
[1735506554307,4.0904,192.42,192.36,2.6048]
[1735506554607,1.4863,192.42,192.35,11.28810513]
[1735506555011,4.0904,192.42,192.37,2.6046]
[1735506555206,1.4863,192.42,192.35,11.28810513]
[1735506556049,1.4863,192.42,192.37,2.6047]
[1735506556904,1.4863,192.42,192.35,11.28810513]
[1735506556905,1.4863,192.42,192.38,2.6045]
[1735506558918,4.0903,192.42,192.37,2.6047]
[1735506559921,4.0903,192.42,192.38,2.6045]
[1735506561119,4.0903,192.42,192.37,2.6047]
[1735506563228,2.6043,192.41,192.36,10.91290513]
[1735506563818,2.6043,192.41,192.36,2.6048]
[1735506563819,8.30810513,192.41,192.36,2.6048]
[1735506564014,2.6043,192.4,192.36,2.6048]
[1735506566325,10.91250513,192.39,192.35,2.98]
[1735506567517,8.30810513,192.39,192.35,2.98]
[1735506567718,2.6043,192.4,192.35,2.98]
[1735506568521,2.6043,192.4,192.36,2.6048]
[1735506575236,2.6046,192.38,192.35,2.98]
[1735506580734,5.7052,192.41,192.36,2.6047]
[1735506582435,1.4863,192.42,192.36,8.30810513]
[1735506583441,1.4863,192.42,192.39,2.6044]
[1735506585434,12.39840513,192.42,192.36,8.30810513]
[1735506585636,12.39840513,192.42,192.38,2.6045]
[1735506598048,9.79440513,192.42,192.34,8.30810513]
[1735506598249,2.6042,192.41,192.37,2.6046]
[1735506599740,2.6043,192.4,192.36,2.6048]
[1735506599948,10.91240513,192.4,192.37,4.7347499]
[1735506600149,10.91240513,192.4,192.36,2.6048]
[1735506600348,10.91240513,192.4,192.37,4.73478318]
[1735506600647,10.91240513,192.4,192.36,2.6048]
[1735506600840,10.91240513,192.4,192.37,4.73478862]
[1735506601045,10.91240513,192.4,192.36,2.6048]
[1735506601240,10.91240513,192.4,192.37,4.73511223]
[1735506601440,10.91240513,192.4,192.36,2.6048]
[1735506601643,10.91240513,192.4,192.37,4.73518014]
[1735506601840,10.91240513,192.4,192.36,2.6048]
[1735506602139,10.91240513,192.4,192.37,4.73518306]
[1735506602344,10.91240513,192.4,192.36,2.6048]
[1735506602550,10.91240513,192.4,192.37,4.73550522]
[1735506602743,10.91240513,192.4,192.36,2.6048]
[1735506602947,10.91240513,192.4,192.37,4.73547047]
[1735506603147,10.91240513,192.4,192.36,2.6048]
[1735506603352,10.91240513,192.4,192.37,4.73549838]
[1735506603568,10.91240513,192.4,192.36,2.6048]
[1735506603754,10.91240513,192.4,192.37,4.73644449]
[1735506603953,10.91240513,192.4,192.36,2.6048]
[1735506604253,10.91240513,192.4,192.37,4.73646398]
[1735506604449,2.6045,192.39,192.35,5.5849]
[1735506604651,2.6045,192.39,192.36,4.73743593]
[1735506604850,2.6045,192.39,192.35,5.5849]
[1735506605053,2.6045,192.39,192.36,4.73702533]
[1735506605243,2.6045,192.39,192.35,5.5849]
[1735506605449,2.6045,192.39,192.36,4.73719683]
[1735506605651,2.6045,192.39,192.35,5.5849]
[1735506605850,2.6045,192.39,192.36,4.73699651]
[1735506606050,2.6045,192.39,192.35,5.5849]
[1735506606249,2.6045,192.39,192.36,4.73678929]
[1735506606450,2.6045,192.39,192.35,5.5849]
[1735506606671,2.6045,192.39,192.36,4.73702495]
[1735506606854,8.30810513,192.38,192.32,8.30810513]
[1735506607048,8.30810513,192.36,192.33,16.50766127]
[1735506607246,8.30810513,192.34,192.3,7.14761982]
[1735506607450,8.30810513,192.32,192.29,7.14761982]
[1735506607662,8.30810513,192.3,192.29,7.14761982]
[1735506607866,8.30810513,192.3,192.29,16.08051374]
[1735506608057,8.30810513,192.3,192.29,11.8879003]
[1735506608561,10.91370513,192.3,192.29,7.14761982]
[1735506608755,10.91370513,192.3,192.25,8.80703269]
[1735506608965,10.91370513,192.3,192.26,8.81831138]
[1735506609262,10.91370513,192.3,192.25,8.80703269]
[1735506610665,2.6054,192.32,192.26,2.6061]
[1735506610959,8.30810513,192.31,192.26,2.6061]
[1735506612567,8.30810513,192.31,192.27,2.606]
[1735506613488,8.30810513,192.31,192.27,5.586]
[1735506614971,2.6054,192.32,192.27,5.586]
[1735506615568,2.98,192.38,192.27,2.98]
[1735506615770,8.30810513,192.34,192.3,2.6056]
[1735506617377,10.91320513,192.34,192.29,2.6057]
[1735506619477,8.30810513,192.32,192.28,2.6059]
[1735506621376,10.91350513,192.32,192.28,2.6059]
[1735506621567,8.30810513,192.32,192.27,5.586]
[1735506622072,2.98,192.38,192.27,2.98]
[1735506622073,8.30810513,192.3,192.27,2.98]
[1735506622271,8.30810513,192.3,192.25,11.41323269]
[1735506623577,2.6058,192.29,192.25,11.41323269]
[1735506623881,8.30810513,192.3,192.25,11.41323269]
[1735506625577,10.91380513,192.3,192.25,11.41323269]
[1735506627080,8.30810513,192.3,192.25,8.80703269]
[1735506628183,8.30810513,192.3,192.26,2.6061]
[1735506628391,8.30810513,192.3,192.25,8.80703269]
[1735506629478,8.30810513,192.3,192.25,11.41333269]
[1735506629675,8.30810513,192.28,192.25,5.82703269]
[1735506630079,8.30810513,192.26,192.19,8.30810513]
[1735506630280,8.30810513,192.24,192.17,6.83357497]
[1735506630476,8.30810513,192.22,192.17,6.83357497]
[1735506631371,8.30810513,192.2,192.14,47.669832]
[1735506631684,8.30810513,192.2,192.14,55.97793713]
[1735506633279,1.5146,192.21,192.14,55.97793713]
[1735506633588,8.30810513,192.22,192.16,8.30810513]
[1735506633771,8.30810513,192.22,192.17,2.98]
[1735506634176,8.30810513,192.22,192.19,2.607]
[1735506634577,8.30810513,192.22,192.17,2.98]
[1735506634880,8.30810513,192.24,192.17,2.98]
[1735506635076,8.30810513,192.25,192.18,8.30810513]
[1735506635284,11.50050513,192.27,192.2,8.30810513]
[1735506635576,11.50050513,192.27,192.22,8.30810513]
[1735506635577,1.6177,192.27,192.22,8.30810513]
[1735506635779,1.6177,192.27,192.22,11.28810513]
[1735506637283,1.6177,192.27,192.24,2.6064]
[1735506637677,1.6177,192.27,192.22,11.28810513]
[1735506637885,2.98,192.37,192.26,8.30810513]
[1735506638080,9.88280513,192.33,192.26,8.30810513]
[1735506638387,12.48810513,192.33,192.28,2.6058]
[1735506638583,9.88280513,192.33,192.28,2.6058]
[1735506640183,12.48820513,192.33,192.28,2.6058]
[1735506640785,8.30810513,192.31,192.28,2.6058]
[1735506643283,8.30810513,192.29,192.17,7.14761982]
[1735506643483,8.30810513,192.26,192.18,11.28810513]
[1735506644493,10.91430513,192.26,192.21,2.6068]
[1735506644784,10.91430513,192.26,192.18,11.28810513]
[1735506644785,8.30810513,192.26,192.2,8.30810513]
[1735506645590,8.30810513,192.28,192.2,8.30810513]
[1735506645985,8.30810513,192.28,192.25,2.6063]
[1735506649393,8.30810513,192.28,192.23,2.98]
[1735506649597,8.30810513,192.28,192.26,2.6061]
[1735506653403,8.30810513,192.3,192.27,2.6061]
[1735506657106,8.30810513,192.3,192.28,2.6059]
[1735506661112,8.30810513,192.3,192.27,2.606]
[1735506664914,10.91380513,192.3,192.26,2.6062]
[1735506665708,10.91410513,192.28,192.23,2.6065]
[1735506667010,8.30810513,192.28,192.23,2.6065]
[1735506668115,1.5079,192.32,192.22,11.28810513]
[1735506668415,1.5079,192.32,192.26,8.30810513]
[1735506668616,8.30810513,192.29,192.26,2.6061]
[1735506668811,8.30810513,192.29,192.22,11.28810513]
[1735506669008,8.30810513,192.29,192.23,8.78664663]
[1735506669307,1.5079,192.32,192.24,17.09434053]
[1735506669308,8.30810513,192.31,192.24,17.09434053]
[1735506669517,8.30810513,192.31,192.24,8.30810513]
[1735506670213,8.30810513,192.31,192.27,2.606]
[1735506670510,1.5079,192.32,192.27,5.586]
[1735506670716,9.81600513,192.32,192.27,2.98]
[1735506671716,2.6055,192.31,192.27,2.98]
[1735506673117,2.6055,192.31,192.27,5.586]
[1735506673525,9.81600513,192.32,192.27,5.586]
[1735506673823,12.42150513,192.32,192.27,5.586]
[1735506680535,9.81600513,192.32,192.27,2.98]
[1735506680726,9.81600513,192.32,192.29,2.6058]
[1735506681532,2.6056,192.31,192.27,2.98]
[1735506682127,9.81600513,192.32,192.27,5.586]
[1735506683334,9.81600513,192.32,192.27,2.98]
[1735506683526,12.42140513,192.32,192.28,2.6059]
[1735506687439,8.69115045,192.37,192.3,8.30810513]
[1735506687737,8.30810513,192.39,192.3,8.30810513]
[1735506688042,10.91260513,192.39,192.34,2.605]
[1735506688337,10.91260513,192.39,192.35,2.98]
[1735506689339,2.6043,192.41,192.36,2.6048]
[1735506689541,8.30810513,192.41,192.35,2.98]
[1735506690443,8.30810513,192.41,192.37,2.6046]
[1735506692047,10.91230513,192.41,192.36,2.6048]
[1735506692845,8.30810513,192.41,192.35,2.98]
[1735506693142,8.30810513,192.39,192.35,5.5849]
[1735506693544,2.6047,192.37,192.35,2.98]
[1735506694043,10.91280513,192.37,192.35,2.98]
[1735506695144,2.6049,192.36,192.34,2.98]
[1735506695339,2.6049,192.36,192.31,8.30810513]
[1735506695541,8.30810513,192.35,192.32,2.98]
[1735506695746,8.30810513,192.33,192.32,2.98]
[1735506696342,8.30810513,192.33,192.29,2.98]
[1735506697549,2.6055,192.32,192.29,2.98]
[1735506698748,8.30810513,192.33,192.29,2.98]
[1735506698958,8.30810513,192.31,192.18,28.59047928]
[1735506699149,8.30810513,192.29,192.22,8.30810513]
[1735506700345,10.91400513,192.29,192.23,2.6066]
[1735506700652,8.30810513,192.25,192.21,2.98]
[1735506700856,8.30810513,192.25,192.2,2.98]
[1735506702456,8.30810513,192.25,192.21,2.6068]
[1735506702954,10.91440513,192.25,192.2,2.98]
[1735506703258,8.30810513,192.25,192.2,2.98]
[1735506703754,8.30810513,192.25,192.19,2.607]
[1735506703755,8.30810513,192.23,192.19,2.98]
[1735506704557,8.30810513,192.23,192.11,54.16]
[1735506704862,8.30810513,192.23,192.15,8.30810513]
[1735506705466,8.30810513,192.21,192.15,2.6076]
[1735506705666,8.30810513,192.21,192.15,5.5876]
[1735506706565,10.91510513,192.21,192.15,5.5876]
[1735506707268,2.607,192.2,192.15,5.5876]
[1735506707565,2.607,192.2,192.15,2.98]
[1735506710172,10.91530513,192.19,192.14,2.98]
[1735506712272,10.91530513,192.19,192.13,2.6078]
[1735506712460,10.91530513,192.19,192.13,5.5878]
[1735506712769,13.99800513,192.21,192.15,2.6077]
[1735506713773,11.39100513,192.21,192.15,2.6077]
[1735506713975,8.30810513,192.19,192.14,2.6078]
[1735506714176,8.30810513,192.19,192.13,2.98]
[1735506714670,2.6074,192.18,192.13,5.5878]
[1735506715975,2.6074,192.18,192.14,2.6078]
[1735506716272,2.6074,192.18,192.12,8.30810513]
[1735506716462,2.6074,192.18,192.13,2.98]
[1735506717575,2.6074,192.18,192.13,5.5879]
[1735506717777,10.91560513,192.17,192.13,2.98]
[1735506717971,8.30810513,192.17,192.11,2.6082]
[1735506718976,2.6076,192.16,192.11,2.6082]
[1735506724471,2.6074,192.18,192.13,2.6078]
[1735506724679,8.30810513,192.19,192.12,8.30810513]
[1735506724969,10.91530513,192.19,192.14,2.6077]
[1735506726380,10.91530513,192.19,192.15,2.6077]
[1735506727977,2.6073,192.18,192.15,2.6077]
[1735506729676,10.91530513,192.19,192.15,2.6077]
[1735506729875,8.30810513,192.17,192.15,2.6077]
[1735506730384,8.30810513,192.17,192.16,2.6075]
[1735506730681,10.91530513,192.19,192.16,2.6075]
[1735506732082,8.30810513,192.19,192.17,2.6073]
[1735506732384,9.88900513,192.22,192.16,8.30810513]
[1735506732679,9.88900513,192.22,192.16,11.28810513]
[1735506732981,9.88900513,192.22,192.2,2.607]
[1735506733779,1.5809,192.22,192.21,2.6069]
[1735506735186,9.88900513,192.22,192.21,2.6069]
[1735506735780,12.49580513,192.22,192.18,2.6071]
[1735506736286,9.88900513,192.22,192.18,2.6071]
[1735506737184,12.49580513,192.22,192.19,2.6071]
[1735506737484,9.88900513,192.22,192.16,2.98]
[1735506737685,9.88900513,192.22,192.16,11.28810513]
[1735506737880,9.88900513,192.22,192.2,2.6069]
[1735506742089,8.30810513,192.24,192.18,8.30810513]
[1735506742785,8.30810513,192.24,192.19,2.607]
[1735506742982,8.30810513,192.24,192.18,8.30810513]
[1735506743479,8.30810513,192.24,192.19,2.607]
[1735506743686,8.30810513,192.24,192.18,8.30810513]
[1735506744584,8.30810513,192.24,192.2,2.6069]
[1735506746884,8.30810513,192.24,192.21,2.6068]
[1735506747190,8.30810513,192.26,192.21,2.98]
[1735506747786,8.30810513,192.26,192.22,2.6066]
[1735506752486,10.91430513,192.26,192.22,2.6066]
[1735506752694,10.91430513,192.26,192.21,5.5868]
[1735506754789,8.30810513,192.26,192.21,2.98]
[1735506754989,8.30810513,192.24,192.19,2.6071]
[1735506755288,8.30810513,192.22,192.18,2.98]
[1735506756494,10.91480513,192.22,192.18,5.5872]
[1735506757392,2.6068,192.21,192.17,2.6073]
[1735506757591,2.6068,192.21,192.17,5.5873]
[1735506758287,2.6068,192.21,192.17,2.98]
[1735506758787,2.6068,192.21,192.16,5.5875]
[1735506760591,2.6068,192.21,192.16,13.89560513]
[1735506760794,10.91480513,192.22,192.17,2.6072]
[1735506763508,2.6068,192.21,192.17,2.6072]
[1735506763999,8.30810513,192.2,192.15,2.6075]
[1735506764200,8.30810513,192.18,192.12,2.98]
[1735506764501,8.30810513,192.18,192.13,8.81871508]
[1735506764701,8.30810513,192.18,192.12,2.98]
[1735506764897,8.30810513,192.18,192.13,8.82084751]
[1735506765096,8.30810513,192.18,192.12,2.98]
[1735506765294,8.30810513,192.18,192.13,8.82187822]
[1735506765498,10.91540513,192.18,192.14,2.6077]
[1735506766202,10.91540513,192.18,192.13,2.6079]
[1735506766401,10.91540513,192.18,192.14,8.82432121]
[1735506766599,10.91540513,192.18,192.13,2.6079]
[1735506766805,2.6074,192.17,192.12,2.98]
[1735506767103,2.6074,192.17,192.13,8.82457501]
[1735506767301,2.6074,192.17,192.11,2.98]
[1735506767497,2.6074,192.17,192.12,8.82481008]
[1735506767698,8.30810513,192.16,192.13,8.82481008]
[1735506767899,8.30810513,192.14,192.09,10.12761982]
[1735506768099,8.30810513,192.14,192.1,8.82706755]
[1735506768398,8.30810513,192.14,192.1,2.6083]
[1735506769405,10.91590513,192.14,192.1,2.6083]
[1735506770405,8.30810513,192.12,192.09,2.6084]
[1735506770599,8.30810513,192.12,192.06,2.98]
[1735506770796,9.86260513,192.12,192.06,2.98]
[1735506771202,2.6082,192.11,192.05,6.03240916]
[1735506771404,8.30810513,192.1,192.05,6.03240916]
[1735506772500,10.91640513,192.1,192.05,6.03240916]
[1735506772909,8.30810513,192.08,191.98,46.39650128]
[1735506773111,8.30810513,192.08,191.99,11.80299403]
[1735506773306,8.30810513,192.08,192.0,20.11109916]
[1735506773611,2.6088,192.07,192.02,2.6093]
[1735506773906,2.6088,192.07,192.03,8.82299403]
[1735506774108,8.30810513,192.06,192.01,2.6095]
[1735506775512,1.4659,192.05,192.01,2.6095]
[1735506775802,8.30810513,192.04,192.01,2.6095]
[1735506776017,8.30810513,192.04,191.98,13.89790513]
[1735506776309,8.30810513,192.02,191.95,2.98]
[1735506776607,8.30810513,192.0,191.96,8.8061087]
[1735506776797,8.30810513,192.0,191.95,2.98]
[1735506777205,8.30810513,192.0,191.95,5.5902]
[1735506777701,2.98,192.14,191.98,8.30810513]
[1735506777924,1.5563,192.13,191.98,8.30810513]
[1735506778098,8.30810513,192.07,191.98,8.30810513]
[1735506778502,10.91690513,192.07,192.01,2.6094]
[1735506778704,10.91690513,192.07,192.01,5.5894]
[1735506778900,8.30810513,192.07,192.01,2.98]
[1735506779106,2.6083,192.11,192.05,2.609]
[1735506779305,2.6083,192.11,192.02,8.30810513]
[1735506779306,8.30810513,192.09,192.02,8.30810513]
[1735506779715,1.4659,192.16,192.06,8.30810513]
[1735506779915,8.30810513,192.14,192.08,8.30810513]
[1735506780207,8.30810513,192.14,192.09,2.98]
[1735506780812,8.30810513,192.15,192.1,2.6082]
[1735506781811,10.91580513,192.15,192.1,2.6082]
[1735506782213,2.6077,192.15,192.09,2.98]
[1735506782510,13.03837579,192.13,192.06,2.98]
[1735506782714,13.03837579,192.13,192.05,2.98]
[1735506783105,2.6083,192.11,192.05,5.589]
[1735506783307,13.03837579,192.13,192.05,2.98]
[1735506783503,14.62097579,192.1,192.01,2.98]
[1735506783705,2.609,192.06,192.01,2.98]
[1735506784104,13.03837579,192.07,192.01,2.98]
[1735506784509,2.6091,192.05,192.01,2.98]
[1735506786109,2.6091,192.04,192.01,2.98]
[1735506787309,4.0953,192.03,192.01,2.98]
[1735506787911,4.0953,192.03,191.99,2.6097]
[1735506789014,4.0953,192.03,191.97,5.5899]
[1735506789216,1.486,192.03,191.97,5.5899]
[1735506789412,2.6094,192.02,191.97,5.5899]
[1735506790216,4.0952,192.03,191.97,5.5899]
[1735506791417,1.486,192.03,191.99,2.6097]
[1735506791717,1.5205,192.09,191.97,2.98]
[1735506791913,3.0145,192.09,191.97,2.98]
[1735506792410,2.6087,192.08,192.02,2.6094]
[1735506792617,2.6087,192.08,192.02,5.5894]
[1735506792919,13.03837579,192.05,191.97,2.98]
[1735506793218,13.03837579,192.02,191.95,2.98]
[1735506793419,1.5323,192.01,191.95,2.98]
[1735506793920,2.6098,191.99,191.95,2.98]
[1735506795219,2.6098,191.99,191.94,2.6104]
[1735506795622,4.6275,192.01,191.89,4.87269916]
[1735506795817,2.6099,191.97,191.92,2.6106]
[1735506796120,13.03837579,191.99,191.87,23.38999561]
[1735506796319,13.03837579,191.99,191.88,2.98]
[1735506797221,2.6101,191.96,191.9,2.6108]
[1735506798717,13.03837579,191.99,191.9,2.6108]
[1735506798924,13.03837579,191.96,191.87,5.5911]
[1735506799320,13.03837579,191.9,191.82,28.59047928]
[1735506799529,13.03837579,191.9,191.82,31.20237928]
[1735506799720,1.6134,191.89,191.82,31.20237928]
[1735506799912,2.6113,191.87,191.82,31.20237928]
[1735506800222,1.6134,191.89,191.8,5.5921]
[1735506800414,13.03837579,191.87,191.8,5.5921]
[1735506800822,2.6115,191.85,191.8,5.5921]
[1735506801019,13.03837579,191.87,191.8,2.98]
[1735506801420,13.03837579,191.87,191.79,2.98]
[1735506801617,1.6134,191.89,191.75,28.59047928]
[1735506801618,13.03837579,191.84,191.75,28.59047928]
[1735506801827,13.03837579,191.84,191.76,2.98]
[1735506802825,13.03837579,191.87,191.76,2.98]
[1735506803220,2.6114,191.86,191.76,2.98]
[1735506803424,13.03837579,191.87,191.76,2.98]
[1735506803827,2.6115,191.85,191.76,2.98]
[1735506804428,13.03837579,191.87,191.76,2.98]
[1735506804728,1.6134,191.89,191.77,13.03837579]
[1735506804930,1.6134,191.89,191.77,14.66297579]
[1735506805129,1.6134,191.89,191.81,2.6119]
[1735506805323,1.6134,191.89,191.82,2.98]
[1735506806431,2.6117,191.85,191.78,2.98]
[1735506806618,13.03837579,191.87,191.78,2.98]
[1735506807827,2.6117,191.84,191.78,5.5924]
[1735506808028,13.03837579,191.87,191.78,2.98]
[1735506808520,2.6115,191.86,191.76,13.03837579]
[1735506808727,2.6115,191.86,191.77,2.98]
[1735506809320,2.6117,191.84,191.78,2.6124]
[1735506811324,13.03837579,191.87,191.78,2.6124]
[1735506811520,2.6119,191.83,191.77,2.6126]
[1735506811727,2.6119,191.83,191.72,28.59047928]
[1735506811728,13.03837579,191.84,191.72,28.59047928]
[1735506811958,13.03837579,191.84,191.73,2.98]
[1735506812127,1.4776,191.83,191.72,7.14761982]
[1735506812330,2.6122,191.8,191.74,2.6129]
[1735506812529,1.4776,191.83,191.73,2.98]
[1735506813833,2.6119,191.82,191.76,2.6127]
[1735506814052,1.4776,191.83,191.73,2.98]
[1735506814526,4.0894,191.83,191.76,2.6127]
[1735506815137,2.6121,191.81,191.77,2.98]
[1735506815330,1.4776,191.83,191.77,2.98]
[1735506815839,2.6119,191.82,191.77,2.98]
[1735506816733,2.6119,191.82,191.77,5.5925]
[1735506816931,2.6117,191.85,191.77,2.98]
[1735506817132,13.03837579,191.87,191.77,2.98]
[1735506817637,2.6114,191.86,191.8,2.6122]
[1735506818031,13.03837579,191.87,191.8,2.6122]
[1735506818232,2.6119,191.83,191.77,5.5926]
[1735506818439,2.6119,191.83,191.77,2.6126]
[1735506818629,2.6119,191.83,191.78,2.98]
[1735506819839,2.6119,191.83,191.79,2.98]
[1735506820842,2.6117,191.84,191.79,2.98]
[1735506822443,2.6118,191.83,191.79,2.98]
[1735506824842,2.6118,191.83,191.79,5.5923]
[1735506825143,2.6115,191.85,191.79,2.98]
[1735506826540,2.6115,191.85,191.8,2.6121]
[1735506827644,2.6116,191.85,191.8,2.6121]
[1735506832044,2.6116,191.85,191.79,2.98]
[1735506832246,2.6116,191.85,191.81,2.612]
[1735506833551,2.6113,191.87,191.79,11.34869529]
[1735506833852,2.6113,191.87,191.81,8.36869529]
[1735506834245,2.6113,191.87,191.82,2.6119]
[1735506836745,8.36869529,191.86,191.8,28.59047928]
[1735506836947,8.36869529,191.86,191.8,31.20267928]
[1735506837348,10.98009529,191.86,191.82,2.6119]
[1735506837550,8.36869529,191.86,191.8,28.59047928]
[1735506837749,8.36869529,191.86,191.79,39.93917457]
[1735506837947,8.36869529,191.86,191.8,8.81853101]
[1735506838251,8.36869529,191.86,191.81,4.63260079]
[1735506838447,8.36869529,191.86,191.82,2.6119]
[1735506840556,8.36869529,191.86,191.79,39.93917457]
[1735506840752,8.36869529,191.86,191.8,8.84228187]
[1735506840959,8.36869529,191.86,191.81,8.84228187]
[1735506841258,8.36869529,191.86,191.82,8.84228187]
[1735506841456,8.36869529,191.86,191.83,8.84228187]
[1735506841749,8.36869529,191.86,191.84,2.98]
[1735506844553,4.2244,191.89,191.85,11.47924455]
[1735506844753,8.36869529,191.87,191.85,2.6115]
[1735506845464,8.36869529,191.87,191.86,11.47756132]
[1735506845956,8.36869529,191.87,191.86,11.47760928]
[1735506846156,8.36869529,191.87,191.86,11.47727664]
[1735506846358,8.36869529,191.87,191.86,11.47721128]
[1735506846557,8.36869529,191.87,191.86,8.86581128]
[1735506847259,8.36869529,191.87,191.85,2.6115]
[1735506847459,8.36869529,191.87,191.86,8.8612383]
[1735506847960,8.36869529,191.87,191.86,4.65027302]
[1735506848159,8.36869529,191.87,191.86,8.86111423]
[1735506848359,8.36869529,191.87,191.85,2.6115]
[1735506849962,1.6134,191.89,191.84,2.98]
[1735506850157,4.0859,191.91,191.86,2.6113]
[1735506850359,8.36869529,191.88,191.86,2.6113]
[1735506852352,1.5545,191.97,191.87,2.6111]
[1735506852557,8.36869529,191.9,191.84,2.98]
[1735506852855,8.36869529,191.9,191.85,8.85282818]
[1735506853061,8.36869529,191.9,191.86,8.85282818]
[1735506853260,8.36869529,191.9,191.87,8.85282818]
[1735506853462,8.36869529,191.9,191.84,2.98]
[1735506853662,8.36869529,191.9,191.85,8.84924493]
[1735506853959,8.36869529,191.9,191.86,8.84924493]
[1735506854158,8.36869529,191.9,191.87,8.84924493]
[1735506854359,8.36869529,191.9,191.84,2.98]
[1735506854661,8.36869529,191.9,191.88,2.611]
[1735506854863,8.36869529,191.9,191.89,2.98]
[1735506855553,2.6104,191.93,191.89,2.98]
[1735506855759,8.36869529,191.9,191.89,2.98]
[1735506857958,10.97949529,191.9,191.81,28.59047928]
[1735506858159,8.36869529,191.87,191.82,11.82077862]
[1735506858364,8.36869529,191.87,191.83,8.84077862]
[1735506858557,8.36869529,191.87,191.84,8.84077862]
[1735506858754,8.36869529,191.87,191.85,8.84077862]
[1735506858960,8.36869529,191.87,191.82,2.98]
[1735506859163,8.36869529,191.87,191.83,8.83904467]
[1735506859461,8.36869529,191.85,191.84,8.83904467]
[1735506859652,8.36869529,191.85,191.84,4.20044368]
[1735506859856,8.36869529,191.85,191.83,2.98]
[1735506860058,1.6194,191.89,191.83,2.98]
[1735506860259,8.36869529,191.86,191.83,2.98]
[1735506861365,8.36869529,191.86,191.83,5.5917]
[1735506862267,8.36869529,191.86,191.84,8.84039453]
[1735506862459,8.36869529,191.86,191.83,5.5917]
[1735506864065,8.36869529,191.86,191.84,8.83975965]
[1735506864267,8.36869529,191.86,191.83,5.5917]
[1735506864463,8.36869529,191.86,191.84,8.84043228]
[1735506864664,8.36869529,191.86,191.83,5.5917]
[1735506864867,8.36869529,191.86,191.84,8.84077718]
[1735506865067,8.36869529,191.86,191.83,5.5917]
[1735506865263,8.36869529,191.86,191.84,8.83976794]
[1735506865466,2.6112,191.88,191.83,5.5917]
[1735506865669,8.36869529,191.86,191.84,8.84022804]
[1735506865866,8.36869529,191.86,191.83,5.5917]
[1735506866066,8.36869529,191.86,191.84,8.84267317]
[1735506866266,8.36869529,191.86,191.83,5.5917]
[1735506866468,8.36869529,191.86,191.84,8.84271761]
[1735506866771,8.36869529,191.86,191.83,5.5917]
[1735506866965,8.36869529,191.86,191.84,8.84598605]
[1735506867167,8.36869529,191.86,191.83,5.5917]
[1735506867367,8.36869529,191.86,191.84,8.84733681]
[1735506867567,8.36869529,191.86,191.83,5.5917]